bitfinex/quotes_SOLUSD_20250222
["timestamp","ask_amount","ask_price","bid_price","bid_amount"]
[1740225565968,21.39593544,173.88,173.87,0.063]
[1740225567371,15.64493544,173.88,173.87,0.063]
[1740225568553,4.18,173.88,173.87,0.063]
[1740225570855,81.23,173.89,173.87,0.063]
[1740225571980,92.69493544,173.89,173.87,0.063]
[1740225577079,11.46493544,173.88,173.87,0.063]
[1740225577461,81.23,173.89,173.87,0.063]
[1740225577779,92.69493544,173.89,173.87,0.063]
[1740225579287,11.46493544,173.88,173.87,0.063]
[1740225580960,92.69493544,173.89,173.87,0.063]
[1740225581159,81.23,173.89,173.87,0.063]
[1740225584472,92.69493544,173.89,173.87,0.063]
[1740225584871,11.46493544,173.88,173.87,0.063]
[1740225585190,92.69493544,173.89,173.87,0.063]
[1740225585363,11.46493544,173.88,173.87,0.063]
[1740225586689,17.21593544,173.88,173.87,0.063]
[1740225589977,35.8655843,173.88,173.87,0.063]
[1740225593196,11.46493544,173.88,173.87,0.063]
[1740225595466,0.03,173.89,173.87,0.063]
[1740225595467,11.49493544,173.89,173.87,0.063]
[1740225595670,17.24573544,173.89,173.87,0.063]
[1740225595875,11.46493544,173.88,173.87,0.063]
[1740225596301,17.24573544,173.89,173.87,0.063]
[1740225596505,21.42573544,173.89,173.87,0.063]
[1740225599907,11.46493544,173.88,173.87,0.063]
[1740225602512,0.03,173.89,173.87,0.063]
[1740225602692,0.03,173.89,173.87,6.4042]
[1740225602894,0.03,173.89,173.87,17.86913544]
[1740225603510,0.03,173.89,173.88,11.46493544]
[1740225604715,0.03,173.92,173.88,63.0756772]
[1740225604889,0.03,173.92,173.91,11.46493544]
[1740225605084,0.03,173.92,173.91,17.80613544]
[1740225605404,90.23716145,173.99,173.95,11.46493544]
[1740225605616,90.23716145,173.99,173.96,11.46493544]
[1740225605977,9.03716145,173.99,173.95,11.46493544]
[1740225606187,11.46493544,173.97,173.91,17.80613544]
[1740225606608,92.66493544,173.98,173.91,17.80613544]
[1740225606902,11.46493544,173.97,173.91,17.80613544]
[1740225607103,11.46493544,173.97,173.91,23.55613544]
[1740225607323,81.2,173.98,173.91,23.55613544]
[1740225607525,92.66493544,173.98,173.91,23.55613544]
[1740225607820,0.03,173.97,173.92,11.46493544]
[1740225608481,0.03,173.97,173.94,11.46493544]
[1740225608709,0.03,173.97,173.95,11.46493544]
[1740225610687,0.03,173.97,173.94,17.21373544]
[1740225611505,0.03,173.97,173.92,17.21463544]
[1740225611724,11.49493544,173.97,173.92,5.7497]
[1740225612321,0.03,173.97,173.92,17.21463544]
[1740225613191,0.03,173.97,173.93,11.46493544]
[1740225614003,0.03,173.97,173.96,11.46493544]
[1740225614709,0.03,173.97,173.96,18.85193544]
[1740225616793,0.03,173.97,173.96,1.6386]
[1740225618338,0.03,173.97,173.92,100.35293544]
[1740225618638,0.03,173.97,173.93,11.46493544]
[1740225619218,0.03,173.97,173.94,5.7491]
[1740225620322,0.03,173.97,173.94,17.21403544]
[1740225620493,0.03,173.97,173.94,5.7491]
[1740225624358,0.03,173.97,173.94,17.21403544]
[1740225624927,0.03,173.97,173.95,11.46493544]
[1740225625431,0.03,173.97,173.96,11.46493544]
[1740225626550,0.03,173.97,173.96,17.21333544]
[1740225627861,0.03,173.97,173.96,41.9613843]
[1740225629444,0.03,173.97,173.96,123.4613843]
[1740225632831,0.0001,173.97,173.96,125.1174843]
[1740225634262,0.0001,173.97,173.96,127.1174843]
[1740225634468,0.0001,173.97,173.96,172.97722606]
[1740225634663,0.0001,173.97,173.96,175.90402287]
[1740225638139,0.0001,174.0,173.99,39.64964886]
[1740225638346,0.0001,174.0,173.99,132.6145843]
[1740225638678,0.0001,174.0,173.99,138.3619843]
[1740225639766,0.0001,174.0,173.99,137.3619843]
[1740225639976,0.0001,174.0,173.99,138.3619843]
[1740225640157,0.0001,174.0,173.99,137.3619843]
[1740225645968,0.0001,174.0,173.99,139.3619843]
[1740225648570,0.0001,174.0,173.99,138.3619843]
[1740225649688,0.0001,174.0,173.99,118.71233544]
[1740225649852,0.0001,174.0,173.99,107.2474]
[1740225652375,0.0001,174.0,173.99,118.71233544]
[1740225655150,0.0001,174.0,173.98,17.21263544]
[1740225655356,0.0001,174.0,173.98,5.7477]
[1740225658498,0.0001,174.0,173.98,17.21263544]
[1740225659198,0.0001,174.0,173.99,11.46493544]
[1740225659573,0.0001,174.0,173.99,17.21233544]
[1740225661084,0.0001,174.0,173.99,35.8619843]
[1740225661281,0.0001,174.0,173.99,117.3619843]
[1740225664606,0.0001,174.0,173.99,118.3619843]
[1740225665627,0.0001,174.0,173.99,105.89704886]
[1740225665791,0.0001,174.0,173.99,117.3619843]
[1740225669106,0.0001,174.0,173.99,119.3619843]
[1740225669302,0.03,174.07,174.03,20.0]
[1740225669484,0.03,174.07,174.05,11.46493544]
[1740225670899,0.03,174.07,174.06,5.7451]
[1740225675303,0.03,174.07,174.03,112.96493544]
[1740225675618,0.03,174.07,174.04,5.7458]
[1740225683524,0.03,174.07,174.04,17.21073544]
[1740225684012,0.03,174.07,174.04,5.7458]
[1740225686210,11.46493544,174.06,174.03,81.5]
[1740225687313,11.46493544,174.04,174.03,81.5]
[1740225689215,11.46493544,174.04,174.0,5.747]
[1740225689216,11.46493544,174.04,173.98,5.7474]
[1740225689433,11.46493544,174.03,173.98,5.7474]
[1740225689930,11.46493544,174.02,173.98,5.7474]
[1740225690229,11.46493544,174.03,173.98,5.7474]
[1740225690527,11.46493544,174.04,173.98,17.21233544]
[1740225691024,11.46493544,174.04,173.98,17.27533544]
[1740225691413,11.46493544,174.04,173.98,31.64473544]
[1740225691614,11.46493544,174.06,174.0,11.46493544]
[1740225691820,11.46493544,174.06,173.98,20.1798]
[1740225691821,11.46493544,174.05,173.99,11.46493544]
[1740225692340,11.46493544,174.05,174.0,5.7471]
[1740225693937,0.03,174.07,174.03,20.0]
[1740225694144,0.03,174.07,174.04,11.46493544]
[1740225694319,0.03,174.07,174.05,5.7454]
[1740225695615,0.03,174.07,174.04,5.7458]
[1740225698757,0.03,174.07,174.01,98.71163544]
[1740225699057,11.49493544,174.07,174.01,98.71163544]
[1740225700050,11.49493544,174.07,174.01,87.2467]
[1740225700738,11.46493544,174.06,174.01,87.2467]
[1740225701551,11.46493544,174.05,174.01,87.2467]
[1740225702852,11.46493544,174.03,174.01,81.5]
[1740225703017,11.46493544,174.02,173.98,5.8107]
[1740225703218,11.46493544,174.01,173.98,0.063]
[1740225703949,11.46493544,174.01,174.0,0.063]
[1740225708620,21.37163544,174.01,174.0,0.063]
[1740225710840,15.62493544,174.01,174.0,0.063]
[1740225711545,4.16,174.01,174.0,0.063]
[1740225711734,11.46493544,174.01,174.0,0.063]
[1740225714669,52.2,174.03,174.0,0.063]
[1740225714872,11.46493544,174.01,174.0,0.063]
[1740225717258,11.49493544,174.01,174.0,0.063]
[1740225726150,0.03,174.01,174.0,0.063]
[1740225726762,0.03,174.01,174.0,31.52793544]
[1740225726943,0.0001,174.01,174.0,50.1775843]
[1740225727932,0.0001,174.01,174.0,51.1775843]
[1740225728136,0.0001,174.01,174.0,56.9246843]
[1740225728747,0.0001,174.01,174.0,57.9246843]
[1740225730963,0.0001,174.01,174.0,145.4578843]
[1740225735066,0.0001,174.01,174.0,149.6178843]
[1740225738279,0.0001,174.15,174.13,7.6397]
[1740225738462,0.0001,174.15,174.14,15.66493544]
[1740225738779,0.0001,174.15,174.14,115.8145843]
[1740225738955,0.0001,174.15,174.14,116.8145843]
[1740225739357,0.0001,174.15,174.14,115.8145843]
[1740225739559,0.0001,174.15,174.14,116.8145843]
[1740225739875,0.0001,174.15,174.14,115.8145843]
[1740225740278,0.0001,174.15,174.14,121.6200843]
[1740225740574,0.0001,174.15,174.14,97.22793544]
[1740225740982,0.0001,174.15,174.14,15.72793544]
[1740225742184,0.0001,174.15,174.14,16.72793544]
[1740225742489,0.0001,174.15,174.14,22.47043544]
[1740225742693,0.0001,174.15,174.14,21.47043544]
[1740225743289,0.0001,174.15,174.14,22.47043544]
[1740225743784,0.0001,174.15,174.14,21.47043544]
[1740225743967,0.0001,174.15,174.14,40.1200843]
[1740225744878,0.0001,174.15,174.14,121.6200843]
[1740225745955,0.0001,174.15,174.14,122.6200843]
[1740225746163,0.0001,174.15,174.14,121.6200843]
[1740225746363,0.0001,174.15,174.14,122.6200843]
[1740225752885,0.0001,174.15,174.14,123.6200843]
[1740225755101,0.0001,174.15,174.14,121.6200843]
[1740225755281,0.0001,174.15,174.14,122.6200843]
[1740225755695,0.0001,174.15,174.14,105.95514886]
[1740225755899,0.0001,174.15,174.14,102.97043544]
[1740225756274,0.0001,174.15,174.14,91.5055]
[1740225756477,0.0001,174.15,174.14,102.97043544]
[1740225756672,0.0001,174.15,174.14,121.6200843]
[1740225759711,0.0001,174.15,174.14,102.97043544]
[1740225760003,0.0001,174.15,174.14,121.6200843]
[1740225763115,0.0001,174.18,174.17,51.1145843]
[1740225763281,0.0001,174.18,174.17,38.64964886]
[1740225763476,0.0001,174.18,174.17,50.1145843]
[1740225765282,0.0001,174.18,174.17,55.8560843]
[1740225766378,0.0001,174.18,174.17,118.70643544]
[1740225767014,0.0001,174.18,174.17,87.2415]
[1740225767179,0.0001,174.18,174.17,5.7415]
[1740225768324,0.0001,174.18,174.17,20.0]
[1740225770321,0.0001,174.18,174.17,25.7415]
[1740225774921,0.0001,174.18,174.15,15.68493544]
[1740225775097,0.0001,174.18,174.16,5.7418]
[1740225776030,0.0001,174.18,174.14,87.3051]
[1740225776534,0.0001,174.18,174.16,0.063]
[1740225781347,11.46493544,174.17,174.16,0.063]
[1740225784930,17.20643544,174.17,174.16,0.063]
[1740225786319,18.85213544,174.17,174.16,0.063]
[1740225787347,84.36152606,174.17,174.16,0.063]
[1740225787514,84.36152606,174.17,174.14,0.063]
[1740225787515,20.0,174.15,174.14,0.063]
[1740225787834,77.3246772,174.15,174.14,0.063]
[1740225788034,78.3246772,174.15,174.14,0.063]
[1740225788856,84.0667772,174.15,174.14,0.063]
[1740225789013,103.71642606,174.15,174.14,0.063]
[1740225789334,11.46493544,174.07,174.03,5.7461]
[1740225789716,11.46493544,174.07,174.02,81.5]
[1740225791330,11.46493544,174.06,174.02,87.2464]
[1740225792044,11.46493544,174.05,174.02,81.5]
[1740225792223,11.46493544,174.04,174.02,81.5]
[1740225792624,11.46493544,174.04,174.02,87.2464]
[1740225792947,11.46493544,174.05,174.02,87.2464]
[1740225795351,11.46493544,174.05,174.01,5.7467]
[1740225797255,11.46493544,174.04,174.01,5.7467]
[1740225797451,11.46493544,174.03,174.0,81.563]
[1740225797952,11.46493544,174.01,174.0,0.063]
[1740225800458,17.21163544,174.01,174.0,0.063]
[1740225800969,11.46493544,174.01,174.0,0.063]
[1740225803369,5.7464,174.02,174.0,0.063]
[1740225803572,11.46493544,174.01,174.0,0.063]
[1740225805244,17.21163544,174.01,174.0,0.063]
[1740225807855,11.46493544,174.01,174.0,0.063]
[1740225812376,17.21163544,174.01,174.0,0.063]
[1740225813157,11.46493544,174.01,174.0,0.063]
[1740225817390,92.66493544,174.02,174.0,0.063]
[1740225817591,81.2,174.02,174.0,0.063]
[1740225818971,11.46493544,174.01,174.0,0.063]
[1740225823195,81.2,174.02,174.0,0.063]
[1740225823502,11.46493544,174.01,174.0,0.063]
[1740225833007,17.21163544,174.01,174.0,0.063]
[1740225833199,11.46493544,174.01,174.0,0.063]
[1740225835008,17.21163544,174.01,174.0,0.063]
[1740225836011,36.8612843,174.01,174.0,0.063]
[1740225838618,30.1145843,174.01,174.0,0.063]
[1740225839416,35.8612843,174.01,174.0,0.063]
[1740225842422,24.39634886,174.01,174.0,0.063]
[1740225842591,35.8612843,174.01,174.0,0.063]
[1740225847919,38.64964886,173.99,173.98,0.063]
[1740225848115,100.13432606,173.99,173.98,0.063]
[1740225849813,105.88172606,173.99,173.98,0.063]
[1740225850519,60.0219843,173.99,173.98,0.063]
[1740225852928,62.88957376,173.99,173.98,0.063]
[1740225862652,31.46493544,173.99,173.98,0.063]
[1740225862960,35.62493544,173.99,173.98,0.063]
[1740225864850,41.37233544,173.99,173.98,0.063]
[1740225866933,37.21233544,173.99,173.98,0.063]
[1740225873782,25.7474,173.99,173.98,0.063]
[1740225874079,37.21233544,173.99,173.98,0.063]
[1740225890918,55.8619843,173.99,173.98,0.063]
[1740225891521,101.72172606,173.99,173.98,0.063]
[1740225892018,55.8619843,173.99,173.98,0.063]
[1740225893194,1.0,173.98,173.97,0.063]
[1740225893496,59.3246772,173.98,173.97,0.063]
[1740225894316,19.64964886,173.97,173.96,0.063]
[1740225894514,76.97432606,173.97,173.92,0.063]
[1740225894815,11.46493544,173.93,173.92,0.063]
[1740225895221,17.21433544,173.93,173.92,0.063]
[1740225902523,11.46493544,173.93,173.92,0.063]
[1740225904147,14.3982,174.0,173.92,0.063]
[1740225904148,11.46493544,173.95,173.93,1.6307]
[1740225904340,11.46493544,173.97,173.93,1.6307]
[1740225904806,11.46493544,173.94,173.93,1.6307]
[1740225905638,11.46493544,173.94,173.92,0.063]
[1740225905809,11.46493544,173.93,173.92,0.063]
[1740225906630,17.21433544,173.93,173.92,0.063]
[1740225911342,35.8639843,173.93,173.92,0.063]
[1740225916761,24.39904886,173.93,173.92,0.063]
[1740225917055,35.8639843,173.93,173.92,0.063]
[1740225925868,24.39904886,173.93,173.92,0.063]
[1740225926071,35.8639843,173.93,173.92,0.063]
[1740225927359,40.0239843,173.93,173.92,0.063]
[1740225937079,34.2745843,173.93,173.92,0.063]
[1740225937391,15.62493544,173.93,173.92,0.063]
[1740225937595,11.46493544,173.93,173.92,0.063]
[1740225937769,4.16,173.95,173.92,0.063]
[1740225938089,11.46493544,173.93,173.92,0.063]
[1740225944902,81.2,173.95,173.92,0.063]
[1740225945066,4.19,173.96,173.92,0.063]
[1740225945067,11.49493544,173.96,173.92,0.063]
[1740225945265,0.03,173.96,173.92,0.063]
[1740225945777,11.49493544,173.96,173.92,0.063]
[1740225947472,11.46493544,173.95,173.92,0.063]
[1740225947799,11.49493544,173.96,173.92,0.063]
[1740225948366,0.03,173.96,173.92,0.063]
[1740225948574,0.03,173.96,173.93,1.6522]
[1740225949997,0.03,173.96,173.93,7.4016]
[1740225951588,0.03,173.96,173.93,1.6522]
[1740225951792,11.49493544,173.96,173.93,1.6522]
[1740225952797,11.46493544,173.94,173.93,1.6522]
[1740225957904,17.21403544,173.94,173.92,0.063]
[1740225958106,11.46493544,173.93,173.92,0.063]
[1740225959399,17.21433544,173.93,173.92,0.063]
[1740225959619,11.46493544,173.93,173.92,0.063]
[1740225961795,17.21433544,173.93,173.92,0.063]
[1740225966334,35.8639843,173.93,173.92,0.063]
[1740225967830,11.46493544,173.88,173.87,0.063]
[1740225968228,57.3246772,173.88,173.87,0.063]
[1740225969126,11.46493544,173.88,173.87,0.063]
[1740225972840,138.5246772,173.88,173.87,0.063]
[1740225973007,144.2756772,173.88,173.87,0.063]
[1740225974756,162.92532606,173.88,173.87,0.063]
[1740225978041,18.64964886,173.87,173.86,0.063]
[1740225978334,30.1145843,173.87,173.86,0.063]
[1740225979640,35.8659843,173.87,173.86,0.063]
[1740225979940,35.1404843,173.87,173.86,0.063]
[1740225980343,35.1404843,173.87,173.85,0.063]
[1740225980512,30.1145843,173.86,173.85,0.063]
[1740225982342,34.1407843,173.86,173.85,0.063]
[1740225984550,37.07215162,173.86,173.85,0.063]
[1740225984846,33.04595162,173.86,173.85,0.063]
[1740225985057,38.79765162,173.86,173.85,0.063]
[1740225996031,11.46493544,173.86,173.85,0.063]
[1740226005063,11.49493544,173.88,173.86,6.1697]
[1740226005272,0.03,173.88,173.86,6.1697]
[1740226006737,0.03,173.88,173.87,5.7514]
[1740226008048,0.03,173.88,173.86,11.9214]
[1740226009170,11.49493544,173.88,173.86,6.1697]
[1740226009467,11.46493544,173.87,173.85,1.687]
[1740226009640,11.46493544,173.86,173.85,1.687]
[1740226012758,11.46493544,173.86,173.85,0.063]
[1740226013670,17.21663544,173.86,173.85,0.063]
[1740226014657,11.46493544,173.86,173.85,0.063]
[1740226019262,81.23,173.88,173.85,0.063]
[1740226019466,11.46493544,173.86,173.85,0.063]
[1740226021483,11.49493544,173.86,173.85,0.063]
[1740226021881,17.24663544,173.86,173.85,0.063]
[1740226026472,11.49493544,173.86,173.85,0.063]
[1740226027084,17.24663544,173.86,173.85,0.063]
[1740226028681,20.03,173.86,173.85,0.063]
[1740226028885,11.49493544,173.86,173.85,0.063]
[1740226029480,14.41847726,173.86,173.85,0.063]
[1740226029889,95.61847726,173.86,173.85,0.063]
[1740226030082,114.26812612,173.86,173.85,0.063]
[1740226031092,120.01982612,173.86,173.85,0.063]
[1740226035396,108.55489068,173.86,173.85,0.063]
[1740226035599,95.61847726,173.86,173.85,0.063]
[1740226038778,101.37017726,173.86,173.85,0.063]
[1740226041706,120.01982612,173.86,173.85,0.063]
[1740226046316,108.55489068,173.86,173.85,0.063]
[1740226046606,120.01982612,173.86,173.85,0.063]
[1740226052103,20.0,173.83,173.82,0.063]
[1740226052418,112.66493544,173.83,173.82,0.063]
[1740226053509,118.41763544,173.83,173.82,0.063]
[1740226057538,137.0672843,173.83,173.82,0.063]
[1740226060311,118.41763544,173.83,173.82,0.063]
[1740226061398,112.66493544,173.83,173.82,0.063]
[1740226061926,92.66493544,173.83,173.82,0.063]
[1740226062704,11.46493544,173.85,173.82,1.7281]
[1740226063025,11.46493544,173.83,173.82,1.7281]
[1740226070149,17.21763544,173.83,173.82,0.063]
[1740226072728,35.8672843,173.83,173.82,0.063]
[1740226076629,11.46493544,173.81,173.8,0.063]
[1740226076822,15.62493544,173.81,173.8,0.063]
[1740226077429,80.13432606,173.81,173.8,0.063]
[1740226077654,85.88772606,173.81,173.8,0.063]
[1740226080641,85.88772606,173.81,173.78,0.063]
[1740226080642,18.64964886,173.79,173.78,0.063]
[1740226080837,75.97432606,173.79,173.78,0.063]
[1740226081950,81.72832606,173.79,173.78,0.063]
[1740226082859,20.0,173.76,173.73,0.063]
[1740226083064,15.62493544,173.75,173.73,0.063]
[1740226083251,34.2745843,173.75,173.73,0.063]
[1740226084064,18.64964886,173.74,173.73,0.063]
[1740226084373,30.1145843,173.74,173.73,0.063]
[1740226086071,35.8702843,173.74,173.73,0.063]
[1740226089390,38.72524104,173.74,173.73,0.063]
[1740226089980,31.46493544,173.71,173.7,0.063]
[1740226092183,11.46493544,173.71,173.7,0.063]
[1740226102186,17.22163544,173.71,173.7,0.063]
[1740226102891,63.0813772,173.71,173.7,0.063]
[1740226103782,17.22163544,173.71,173.7,0.063]
[1740226109001,11.46493544,173.71,173.7,0.063]
[1740226112087,17.22163544,173.71,173.7,0.063]
[1740226112785,81.73102606,173.71,173.7,0.063]
[1740226113100,35.8712843,173.71,173.7,0.063]
[1740226120117,38.78990109,173.71,173.7,0.063]
[1740226121289,18.64964886,173.7,173.69,0.063]
[1740226121493,75.97432606,173.7,173.69,0.063]
[1740226123515,82.73132606,173.7,173.69,0.063]
[1740226124012,81.73132606,173.7,173.69,0.063]
[1740226127120,63.0816772,173.7,173.69,0.063]
[1740226127321,21.38193544,173.7,173.69,0.063]
[1740226127496,11.46493544,173.7,173.69,0.063]
[1740226132327,11.46493544,173.71,173.69,0.063]
[1740226134423,0.063,173.73,173.69,0.063]
[1740226135406,11.52793544,173.73,173.69,0.063]
[1740226139529,11.46493544,173.72,173.69,0.063]
[1740226140227,11.52793544,173.73,173.69,0.063]
[1740226140533,0.063,173.73,173.69,0.063]
[1740226141123,11.52793544,173.73,173.69,0.063]
[1740226141622,11.46493544,173.72,173.69,0.063]
[1740226145732,11.46493544,173.71,173.69,0.063]
[1740226147030,11.46493544,173.72,173.69,0.063]
[1740226148030,11.52793544,173.73,173.69,0.063]
[1740226148815,0.063,173.73,173.69,0.063]
[1740226149212,0.063,173.73,173.69,5.8203]
[1740226149421,0.063,173.73,173.7,19.36243544]
[1740226149629,0.063,173.73,173.7,100.86243544]
[1740226149841,0.063,173.73,173.71,11.46493544]
[1740226150225,11.46493544,173.79,173.74,20.0]
[1740226150425,11.46493544,173.8,173.75,6.2423]
[1740226151336,11.46493544,173.8,173.76,5.755]
[1740226155938,11.46493544,173.82,173.77,1.6552]
[1740226156240,11.46493544,173.83,173.77,1.6552]
[1740226156536,11.46493544,173.83,173.77,83.1552]
[1740226156938,11.46493544,173.83,173.78,5.7544]
[1740226158114,11.46493544,173.84,173.78,17.21933544]
[1740226158545,0.063,173.85,173.79,11.996]
[1740226158754,0.063,173.85,173.8,11.46493544]
[1740226158961,0.063,173.85,173.81,1.6552]
[1740226159258,0.063,173.85,173.81,83.1552]
[1740226160455,0.063,173.85,173.81,88.9085]
[1740226160635,11.52793544,173.85,173.81,83.1552]
[1740226165454,0.063,173.85,173.81,88.9084]
[1740226165642,0.063,173.85,173.83,11.46493544]
[1740226165839,0.063,173.85,173.84,17.57153544]
[1740226166865,0.063,173.85,173.84,23.32393544]
[1740226168456,0.063,173.85,173.84,24.97463544]
[1740226169660,0.063,173.85,173.84,106.47463544]
[1740226171352,0.063,173.85,173.84,100.72223544]
[1740226171553,0.063,173.85,173.84,89.2573]
[1740226173140,0.063,173.85,173.84,107.90694886]
[1740226173372,0.063,173.85,173.84,125.98690719]
[1740226173575,0.063,173.85,173.84,125.1242843]
[1740226173873,4.19,173.96,173.85,18.64964886]
[1740226174074,0.03,173.96,173.9,11.46493544]
[1740226174271,0.03,173.96,173.9,100.76113544]
[1740226174773,11.46493544,173.95,173.9,89.2962]
[1740226174953,11.46493544,173.92,173.9,83.0735]
[1740226175156,5.7491,173.94,173.9,81.5]
[1740226175361,11.46493544,173.92,173.9,81.5]
[1740226177269,11.46493544,173.93,173.9,81.5]
[1740226177475,5.7498,173.92,173.9,81.5]
[1740226177661,5.7497,173.92,173.9,81.5]
[1740226178494,5.7497,173.92,173.88,92.96493544]
[1740226178787,5.7494,173.93,173.88,92.96493544]
[1740226178991,5.7494,173.93,173.89,11.46493544]
[1740226179491,5.7491,173.94,173.89,11.46493544]
[1740226180051,5.7491,173.94,173.88,81.5]
[1740226180395,17.21403544,173.94,173.88,92.96493544]
[1740226180551,11.46493544,173.93,173.88,81.5]
[1740226180752,5.7491,173.94,173.88,81.5]
[1740226180953,11.46493544,173.92,173.88,81.5]
[1740226181666,5.8131,173.91,173.88,81.5]
[1740226182358,0.063,173.91,173.88,81.5]
[1740226182981,11.52793544,173.91,173.88,81.5]
[1740226183979,17.27803544,173.91,173.88,81.5]
[1740226185982,5.8131,173.91,173.88,81.5]
[1740226188683,11.52793544,173.91,173.88,81.5]
[1740226191185,17.27803544,173.91,173.88,81.5]
[1740226191485,11.46493544,173.89,173.88,81.5]
[1740226191993,11.46493544,173.89,173.83,81.5]
[1740226192194,11.46493544,173.86,173.83,81.5]
[1740226192500,11.46493544,173.85,173.83,81.5]
[1740226193395,11.46493544,173.84,173.83,81.5]
[1740226193577,11.46493544,173.84,173.83,20.0]
[1740226196892,11.46493544,173.85,173.83,20.0]
[1740226198097,11.46493544,173.87,173.83,25.7526]
[1740226198282,11.46493544,173.87,173.83,20.0]
[1740226198685,11.46493544,173.87,173.83,25.7526]
[1740226199488,11.46493544,173.87,173.83,25.7826]
[1740226199800,11.46493544,173.87,173.83,20.03]
[1740226200304,11.46493544,173.84,173.83,0.03]
[1740226203192,11.46493544,173.85,173.83,0.03]
[1740226204401,17.21703544,173.85,173.83,0.03]
[1740226204775,11.46493544,173.84,173.83,0.03]
[1740226205801,17.21733544,173.84,173.83,0.03]
[1740226208200,11.46493544,173.84,173.83,0.03]
[1740226214426,17.21733544,173.84,173.83,0.03]
[1740226216734,17.21733544,173.84,173.74,83.1036]
[1740226217031,11.46493544,173.76,173.74,83.1036]
[1740226217600,11.46493544,173.76,173.74,1.6036]
[1740226217801,11.46493544,173.75,173.71,5.7566]
[1740226218028,11.46493544,173.74,173.7,83.1036]
[1740226218844,11.46493544,173.74,173.7,88.8606]
[1740226219145,11.46493544,173.75,173.7,88.8606]
[1740226219349,86.9547,173.78,173.7,88.8606]
[1740226219350,11.46493544,173.77,173.71,11.46493544]
[1740226220252,11.46493544,173.77,173.72,5.7563]
[1740226221042,11.46493544,173.76,173.7,94.56853544]
[1740226221218,11.46493544,173.76,173.71,5.7567]
[1740226222563,11.46493544,173.75,173.71,5.7567]
[1740226222913,11.46493544,173.74,173.7,83.1036]
[1740226223434,11.46493544,173.73,173.7,83.1036]
[1740226223634,11.46493544,173.73,173.71,0.03]
[1740226225528,11.46493544,173.74,173.71,0.03]
[1740226225725,11.46493544,173.76,173.71,0.03]
[1740226226130,11.46493544,173.75,173.71,0.03]
[1740226227154,11.46493544,173.76,173.71,0.03]
[1740226231153,11.46493544,173.75,173.71,0.03]
[1740226234752,81.2,173.8,173.73,31.46493544]
[1740226234954,11.46493544,173.81,173.74,17.67583544]
[1740226235255,11.46493544,173.82,173.76,11.46493544]
[1740226235756,11.46493544,173.81,173.75,13.07473544]
[1740226236160,11.46493544,173.78,173.75,1.6098]
[1740226236557,11.46493544,173.77,173.75,1.6098]
[1740226236741,11.46493544,173.76,173.72,5.7563]
[1740226237255,11.46493544,173.75,173.71,151.8866]
[1740226237458,11.46493544,173.75,173.71,87.2866]
[1740226237660,11.46493544,173.75,173.71,81.53]
[1740226237967,11.46493544,173.74,173.71,81.53]
[1740226238855,11.46493544,173.73,173.71,81.53]
[1740226240943,11.46493544,173.73,173.71,0.03]
[1740226242965,11.46493544,173.72,173.71,0.03]
[1740226243160,11.46493544,173.73,173.71,0.03]
[1740226248074,11.46493544,173.72,173.71,0.03]
[1740226250549,17.22123544,173.72,173.71,0.03]
[1740226251368,11.46493544,173.72,173.71,0.03]
[1740226260979,17.22123544,173.72,173.71,0.03]
[1740226264381,98.42123544,173.72,173.71,0.03]
[1740226264563,117.0708843,173.72,173.71,0.03]
[1740226265583,35.8708843,173.72,173.71,0.03]
[1740226266375,81.73062606,173.72,173.71,0.03]
[1740226266894,82.73062606,173.72,173.69,0.063]